bitfinex/quotes_SOLUSD_20251030
["timestamp","ask_amount","ask_price","bid_price","bid_amount"]
[1761852453603,0.71,181.02,180.97,5.84055223]
[1761852453802,0.71,181.02,180.98,5.84055223]
[1761852454016,0.71,181.02,180.94,0.62]
[1761852454017,0.71,181.02,180.99,5.84055223]
[1761852454317,5.52455665,181.01,180.99,5.84055223]
[1761852454635,5.84055223,181.05,180.94,6.14644894]
[1761852454636,2.88812998,181.08,181.0,5.84055223]
[1761852454787,67.82347601,181.22,181.0,5.84055223]
[1761852454788,5.52117019,181.13,181.0,9.93098926]
[1761852454988,3.08863268,181.15,181.0,9.93098926]
[1761852454989,0.71,181.09,181.06,5.84055223]
[1761852455187,0.71,181.09,181.05,5.84055223]
[1761852455490,6.55055223,181.09,181.01,0.62]
[1761852455687,6.55055223,181.09,181.02,5.84055223]
[1761852455688,0.71,181.09,181.02,5.84055223]
[1761852455990,0.71,181.09,181.01,5.84055223]
[1761852455991,5.84055223,181.07,181.01,5.84055223]
[1761852456186,26.43255223,181.06,181.0,5.84055223]
[1761852456391,5.52364118,181.04,181.0,5.84055223]
[1761852456785,6.23364118,181.04,180.97,0.62]
[1761852457018,6.23364118,181.04,181.0,5.84055223]
[1761852458209,6.23364118,181.04,180.97,0.62]
[1761852458419,6.23364118,181.04,181.0,5.84055223]
[1761852459520,6.23364118,181.04,180.97,5.84055223]
[1761852459521,6.55055223,181.03,180.97,5.84055223]
[1761852459823,0.71,181.02,180.97,5.84055223]
[1761852460023,0.71,181.02,180.93,16.49444708]
[1761852460024,20.592,181.0,180.93,16.49444708]
[1761852460225,5.84055223,180.99,180.93,22.33499931]
[1761852460407,26.43255223,181.0,180.94,5.84055223]
[1761852460611,20.592,181.0,180.94,5.84055223]
[1761852460805,5.52516713,180.99,180.94,5.84055223]
[1761852461323,6.23516713,180.99,180.94,5.84055223]
[1761852462025,0.71,181.02,180.98,5.84055223]
[1761852462196,5.52453553,181.02,180.99,5.84055223]
[1761852463005,26.1159463,181.03,180.99,5.84055223]
[1761852464227,26.1159463,181.03,181.0,5.84055223]
[1761852464426,19.64861519,181.06,181.01,5.84055223]
[1761852464611,19.64861519,181.06,180.97,0.62]
[1761852464612,13.80806296,181.06,181.02,5.84055223]
[1761852465129,5.52303103,181.06,181.02,5.84055223]
[1761852465505,5.52303103,181.06,181.03,5.84055223]
[1761852466441,5.52303103,181.06,181.02,5.84055223]
[1761852466645,6.23303103,181.06,181.02,5.84055223]
[1761852467138,5.52303103,181.06,181.03,5.84055223]
[1761852467439,20.592,181.07,181.03,5.84055223]
[1761852467626,0.71,181.1,181.06,5.84055223]
[1761852467813,20.592,181.12,181.06,5.84055223]
[1761852468013,5.5215414,181.11,181.04,0.62]
[1761852468244,5.84055223,181.1,181.04,5.84055223]
[1761852468447,6.55055223,181.1,181.04,5.84055223]
[1761852468738,6.55055223,181.09,181.0,0.62]
[1761852468937,6.55055223,181.08,181.02,5.84055223]
[1761852469118,5.52272601,181.07,181.0,0.62]
[1761852469317,0.71,181.08,181.0,6.14484942]
[1761852469637,0.71,181.08,181.04,5.84055223]
[1761852469845,20.03849543,181.08,181.04,5.84055223]
[1761852470034,25.87904766,181.08,181.02,5.84055223]
[1761852470234,0.71,181.07,181.02,5.84055223]
[1761852470738,5.84055223,181.05,180.99,5.84055223]
[1761852470938,0.71,181.04,180.99,5.84055223]
[1761852471241,5.5239463,181.03,180.99,5.84055223]
[1761852471419,5.5239463,181.03,180.98,5.84055223]
[1761852471739,19.33381206,181.03,180.98,5.84055223]
[1761852471943,20.04381206,181.03,180.98,5.84055223]
[1761852472639,20.04381206,181.03,180.97,5.84055223]
[1761852472640,0.71,181.02,180.97,5.84055223]
[1761852473143,21.302,181.02,180.94,0.90432314]
[1761852473322,5.52455665,181.01,180.96,5.84055223]
[1761852473832,6.23455665,181.01,180.96,5.84055223]
[1761852474032,6.23455665,181.01,180.97,5.84055223]
[1761852474234,20.592,181.02,180.97,5.84055223]
[1761852474446,20.592,181.02,180.97,6.46055223]
[1761852474945,5.52430411,181.02,180.98,5.84055223]
[1761852475253,5.52430411,181.02,180.99,5.84055223]
[1761852475540,20.592,181.03,180.99,5.84055223]
[1761852475541,26.11618567,181.03,180.99,5.84055223]
[1761852475742,26.11533609,181.05,181.0,5.84055223]
[1761852476039,45.76422855,181.05,180.99,5.84055223]
[1761852476240,0.71,181.04,180.99,5.84055223]
[1761852476447,6.55055223,181.04,180.98,5.84055223]
[1761852476654,5.84055223,181.03,180.97,5.84055223]
[1761852476820,0.71,181.03,180.96,5.84055223]
[1761852477025,6.55055223,181.02,180.96,5.84055223]
[1761852477437,5.52455665,181.01,180.96,5.84055223]
[1761852477634,5.52455665,181.01,180.98,5.84055223]
[1761852478241,5.52429598,181.02,180.98,5.84055223]
[1761852479226,6.23429598,181.02,180.98,5.84055223]
[1761852479841,5.52429598,181.02,180.98,5.84055223]
[1761852480027,6.23429598,181.02,180.98,5.84055223]
[1761852480352,6.23429598,181.02,180.87,61.7]
[1761852480353,26.43255223,180.99,180.87,61.7]
[1761852480643,26.43255223,180.99,180.93,5.84055223]
[1761852480844,0.71,180.98,180.93,5.84055223]
[1761852481230,5.52577775,180.97,180.93,5.84055223]
[1761852481430,6.23552833,180.98,180.94,5.84055223]
[1761852481629,6.23552833,180.98,180.93,5.84055223]
[1761852482252,6.23552833,180.98,180.91,0.62]
[1761852482253,6.23552833,180.98,180.94,5.84055223]
[1761852482550,5.52552833,180.98,180.94,5.84055223]
[1761852483147,26.11723603,180.99,180.94,5.84055223]
[1761852483452,5.84055223,180.97,180.88,30.38082769]
[1761852483753,5.84055223,180.97,180.87,62.32]
[1761852483754,5.84055223,180.94,180.89,5.84055223]
[1761852484052,5.84055223,180.93,180.87,11.36932326]
[1761852484253,5.84055223,180.93,180.87,5.84055223]
[1761852484451,6.55055223,180.92,180.87,5.84055223]
[1761852484702,0.71,180.92,180.87,5.84055223]
[1761852484960,6.55055223,180.91,180.86,5.84055223]
[1761852485157,5.84055223,180.9,180.85,5.84055223]
[1761852485362,5.84055223,180.9,180.83,16.24808513]
[1761852485363,5.84055223,180.87,180.81,5.84055223]
[1761852485735,0.71,180.86,180.81,5.84055223]
[1761852486132,26.12022157,180.89,180.81,5.84055223]
[1761852486133,5.84055223,180.88,180.82,5.84055223]
[1761852486443,0.71,180.88,180.84,5.84055223]
[1761852487263,0.71,180.92,180.86,5.84055223]
[1761852487476,0.71,180.94,180.9,5.84055223]
[1761852487761,20.592,180.93,180.9,5.84055223]
[1761852487939,20.592,180.93,180.89,5.84055223]
[1761852488133,20.592,180.93,180.86,0.62]
[1761852488134,20.592,180.93,180.9,5.84055223]
[1761852488544,21.302,180.93,180.9,5.84055223]
[1761852488854,5.84055223,180.91,180.81,0.28432314]
[1761852489048,5.84055223,180.9,180.85,5.84055223]
[1761852489252,0.72,180.96,180.85,20.592]
[1761852489554,0.72,180.96,180.92,5.84055223]
[1761852490074,5.84055223,180.93,180.87,5.84055223]
[1761852490244,20.592,180.94,180.86,5.84055223]
[1761852490245,5.84055223,180.91,180.86,5.84055223]
[1761852490744,12.08824892,180.91,180.86,11.3696589]
[1761852490947,6.24769669,180.91,180.87,5.84055223]
[1761852491350,0.72,180.91,180.87,5.84055223]
[1761852491555,6.24761761,180.91,180.85,5.52925063]
[1761852491754,6.24761761,180.91,180.87,5.84055223]
[1761852491755,0.72,180.91,180.87,5.84055223]
[1761852492367,6.24765941,180.91,180.87,5.84055223]
[1761852492767,0.72,180.91,180.87,11.36930762]
[1761852492968,0.72,180.91,180.88,5.84055223]
[1761852493772,0.72,180.91,180.85,5.52914083]
[1761852493773,6.24762169,180.91,180.85,5.52914083]
[1761852493956,0.72,180.9,180.86,5.84055223]
[1761852494447,0.72,180.9,180.84,67.22969032]
[1761852494448,5.84055223,180.89,180.84,67.54055223]
[1761852494651,0.72,180.9,180.83,11.3705327]
[1761852494652,11.36907943,180.88,180.83,11.3705327]
[1761852494974,0.72,180.87,180.84,5.84055223]
[1761852495486,0.72,180.87,180.83,5.52998047]
[1761852495779,5.84055223,180.85,180.79,5.84055223]
[1761852495981,5.84055223,180.85,180.8,5.84055223]
[1761852496357,6.55055223,180.85,180.8,5.84055223]
[1761852496556,0.71,180.84,180.8,5.84055223]
[1761852496781,6.23985742,180.84,180.8,5.84055223]
[1761852496964,6.23985742,180.84,180.79,5.84055223]
[1761852497187,6.55055223,180.83,180.77,6.99098999]
[1761852497353,0.71,180.83,180.78,5.84055223]
[1761852497690,11.37040965,180.84,180.77,6.99098999]
[1761852497691,6.55055223,180.82,180.77,6.99098999]
[1761852497860,0.71,180.81,180.77,6.99098999]
[1761852498259,5.84055223,180.8,180.77,6.99098999]
[1761852498479,6.55055223,180.81,180.77,6.99098999]
[1761852498689,6.24105792,180.8,180.77,6.99098999]
[1761852499187,0.71,180.8,180.77,6.99098999]
[1761852499498,0.71,180.84,180.79,5.84055223]
[1761852499662,6.55055223,180.84,180.79,5.84055223]
[1761852500077,20.592,180.85,180.79,5.84055223]
[1761852500281,0.71,180.84,180.8,5.84055223]
[1761852500859,6.23984955,180.84,180.8,5.84055223]
[1761852501061,32.67240178,180.84,180.78,5.84055223]
[1761852501290,6.55055223,180.83,180.78,5.84055223]
[1761852501590,0.71,180.83,180.79,5.84055223]
[1761852502489,0.71,180.83,180.78,5.84055223]
[1761852502891,6.24012142,180.83,180.79,5.84055223]
[1761852503068,0.71,180.83,180.79,5.84055223]
[1761852503274,26.1218037,180.84,180.8,5.84055223]
[1761852503498,21.302,180.84,180.8,5.84055223]
[1761852504086,0.71,180.83,180.77,6.99098999]
[1761852504403,0.71,180.83,180.79,5.84055223]
[1761852504899,0.71,180.83,180.79,11.37175619]
[1761852505416,0.71,180.83,180.8,5.84055223]
[1761852506214,0.71,180.83,180.79,73.07175619]
[1761852506430,0.71,180.83,180.8,5.84055223]
[1761852506809,0.71,180.83,180.8,11.37144512]
[1761852507266,13.8198638,180.9,180.82,5.84055223]
[1761852507550,5.84055223,180.95,180.85,8.87168344]
[1761852507551,0.71,180.89,180.85,8.87168344]
[1761852507833,0.71,180.89,180.86,8.87168344]
[1761852508007,0.71,180.89,180.85,8.87168344]
[1761852508806,6.23834583,180.89,180.84,8.87168344]
[1761852509014,8.87168344,180.88,180.83,8.87168344]
[1761852509213,9.58168344,180.88,180.82,14.4018061]
[1761852509413,0.71,180.87,180.83,8.87168344]
[1761852510051,6.23891356,180.87,180.83,8.87168344]
[1761852510222,0.71,180.87,180.83,14.40167356]
[1761852510434,0.71,180.87,180.84,8.87168344]
[1761852510744,6.23827382,180.89,180.84,8.87168344]
[1761852510930,0.71,180.87,180.84,8.87168344]
[1761852513061,0.71,180.87,180.84,70.57168344]
[1761852514233,0.71,180.87,180.84,61.7]
[1761852515642,0.71,180.87,180.85,8.87168344]
[1761852515841,26.83021083,180.9,180.85,8.87168344]
[1761852516038,0.71,180.89,180.85,8.87168344]
[1761852516363,6.23823285,180.89,180.85,8.87168344]
[1761852516548,6.23823285,180.89,180.85,14.401109]
[1761852517153,6.23823285,180.89,180.86,8.87168344]
[1761852517466,5.52771811,180.91,180.87,8.87168344]
[1761852517761,20.592,180.88,180.85,61.7]
[1761852517955,29.46368344,180.88,180.85,61.7]
[1761852518156,9.58168344,180.87,180.81,8.87168344]
[1761852518340,5.52913856,180.86,180.81,76.10232558]
[1761852518539,6.23913856,180.86,180.81,76.10232558]
[1761852518741,0.71,180.85,180.81,76.10232558]
[1761852518975,0.71,180.85,180.81,61.7]
[1761852519478,0.71,180.85,180.81,76.1022673]
[1761852519974,0.71,180.85,180.81,61.7]
[1761852520564,0.71,180.85,180.81,76.1022838]
[1761852524368,8.87168344,180.83,180.8,61.7]
[1761852524552,8.87168344,180.83,180.77,77.56267343]
[1761852524748,0.71,180.82,180.77,68.69098999]
[1761852524955,0.71,180.82,180.77,77.56267343]
[1761852525167,6.24048063,180.82,180.77,83.09454122]
[1761852525745,0.71,180.81,180.77,83.09454122]
[1761852526172,0.71,180.81,180.78,8.87168344]
[1761852526356,6.24013351,180.83,180.78,8.87168344]
[1761852526672,0.71,180.82,180.78,8.87168344]
[1761852527370,6.2404691,180.82,180.78,70.57168344]
[1761852528074,0.71,180.81,180.78,70.57168344]
[1761852528273,0.71,180.81,180.78,76.10322083]
[1761852528479,0.71,180.82,180.78,76.10322083]
[1761852528649,5.52977168,180.84,180.79,9.49168344]
[1761852528850,26.83151387,180.85,180.81,8.87168344]
[1761852529070,6.23951387,180.85,180.81,8.87168344]
[1761852529375,6.23951387,180.85,180.79,0.62]
[1761852529376,26.83151387,180.85,180.82,8.87168344]
[1761852529563,0.71,180.85,180.82,8.87168344]
[1761852529951,26.8311036,180.87,180.82,8.87168344]
[1761852530166,26.8311036,180.87,180.83,8.87168344]
[1761852530363,0.71,180.86,180.83,8.87168344]
[1761852530568,0.71,180.86,180.82,70.57168344]
[1761852530758,9.58168344,180.86,180.82,61.7]
[1761852531075,0.71,180.85,180.82,61.7]
[1761852532078,29.46368344,180.84,180.82,61.7]
[1761852532469,6.24005585,180.83,180.82,61.7]
[1761852532659,6.24005585,180.83,180.78,76.10316849]
[1761852533269,0.71,180.82,180.79,8.87168344]
[1761852533666,0.71,180.82,180.79,70.57168344]
[1761852534378,6.24038078,180.82,180.79,70.57168344]
[1761852534579,5.53038078,180.82,180.79,70.57168344]
[1761852534882,43.99811,180.84,180.79,76.72289846]
[1761852534883,35.70348288,180.84,180.79,76.72289846]
[1761852535078,0.71,180.83,180.79,76.10289846]
[1761852535762,9.58168344,180.86,180.81,8.87168344]
[1761852535963,26.12146318,180.85,180.81,8.87168344]
[1761852536175,26.83146318,180.85,180.8,8.87168344]
[1761852536362,0.71,180.84,180.8,8.87168344]
[1761852536565,0.71,180.84,180.8,70.57168344]
[1761852537789,26.12146318,180.85,180.81,0.62]
[1761852538374,26.83146318,180.85,180.8,76.10256149]
[1761852538574,26.83146318,180.85,180.81,8.87168344]
[1761852539361,0.71,180.84,180.8,70.57168344]
[1761852539562,0.71,180.84,180.8,61.7]
[1761852539781,9.58168344,180.84,180.8,61.7]
[1761852540278,0.71,180.83,180.8,61.7]
[1761852540457,0.71,180.83,180.8,5.5307507]
[1761852540665,20.592,180.83,180.81,8.87168344]
[1761852540986,6.23942324,180.86,180.81,8.87168344]
[1761852541194,3.60235928,180.88,180.83,8.87168344]
[1761852541495,6.23791597,180.9,180.86,8.87168344]
[1761852541885,0.71,180.89,180.86,8.87168344]
[1761852542391,0.71,180.89,180.85,8.87168344]
[1761852542594,8.87168344,180.87,180.8,5.53078728]
[1761852542781,9.58168344,180.86,180.8,8.87168344]
[1761852542987,14.40112773,180.85,180.8,8.87168344]
[1761852543296,15.11112773,180.85,180.8,14.40265436]
[1761852543594,0.71,180.84,180.8,14.40265436]
[1761852544393,0.71,180.84,180.8,8.87168344]
[1761852544893,6.24004326,180.84,180.79,8.87168344]
[1761852545106,15.1117267,180.84,180.78,14.40319776]
[1761852545308,9.58168344,180.83,180.77,6.99098999]
[1761852545592,8.87168344,180.82,180.77,6.99098999]
[1761852545787,9.58168344,180.82,180.77,68.69098999]
[1761852545988,0.71,180.81,180.77,68.69098999]
[1761852546288,26.83204326,180.84,180.79,8.87168344]
[1761852546476,4.10825389,180.83,180.79,8.87168344]
[1761852546673,4.10825389,180.82,180.8,4.48452381]
[1761852546985,4.10825389,180.81,180.8,4.48452381]
[1761852547695,4.10825389,180.81,180.8,10.01549726]
[1761852547998,4.10825389,180.81,180.8,13.35620725]
[1761852548682,4.10825389,180.83,180.8,13.35620725]
[1761852548886,4.10825389,180.82,180.8,13.35620725]
[1761852549090,4.10825389,180.81,180.8,13.35620725]
[1761852549476,4.10825389,180.81,180.8,18.8871651]
[1761852549776,4.10825389,180.83,180.8,10.01548166]
[1761852549980,4.10825389,180.82,180.81,8.87168344]
[1761852550199,4.10825389,180.83,180.81,61.7]
[1761852550508,34.99311164,180.86,180.81,8.87168344]
[1761852550509,4.10825389,180.82,180.81,8.87168344]
[1761852550706,4.10825389,180.82,180.81,70.57168344]
[1761852551003,4.76825389,180.85,180.81,76.1021413]
[1761852551211,4.10825389,180.84,180.81,61.7]
[1761852551377,3.58500537,180.82,180.81,61.7]
[1761852551586,7.69325926,180.82,180.81,61.7]
[1761852551798,8.35325926,180.82,180.81,61.7]
[1761852552198,8.35325926,180.82,180.8,4.48452381]
[1761852552382,4.10825389,180.81,180.8,4.48452381]
[1761852552892,4.76825389,180.81,180.8,4.48452381]
[1761852553818,13.88392681,180.81,180.8,4.48452381]
[1761852554413,13.88392681,180.81,180.8,3.76452381]
[1761852558416,10.29892144,180.81,180.8,3.76452381]
[1761852558593,13.88392681,180.81,180.8,3.76452381]
[1761852559209,4.10825389,180.81,180.8,3.76452381]
[1761852559392,4.10825389,180.81,180.8,4.46452381]
[1761852559591,4.10825389,180.81,180.8,3.76452381]
[1761852561821,9.63892144,180.81,180.8,3.76452381]
[1761852562202,13.22392681,180.81,180.8,3.76452381]
[1761852562534,4.10825389,180.81,180.8,3.76452381]
[1761852563595,4.10825389,180.81,180.8,13.58050263]
[1761852563913,4.10825389,180.81,180.8,75.28050263]
[1761852564113,29.70608897,180.87,180.8,75.28050263]
[1761852564300,4.11072987,180.86,180.81,4.28500537]
[1761852564498,4.11072987,180.85,180.81,4.28500537]
[1761852564689,4.11072987,180.84,180.81,0.7]
[1761852565003,4.11072987,180.83,180.81,0.7]
[1761852565210,4.26500537,180.85,180.8,65.46452381]
[1761852565416,3.58500537,180.83,180.8,65.46452381]
[1761852565606,4.11030803,180.82,180.8,65.46452381]
[1761852565793,3.58500537,180.84,180.8,71.69545547]
[1761852565997,4.11028744,180.83,180.8,71.69545547]
[1761852566192,7.69529281,180.83,180.8,71.69545547]
[1761852566394,4.11028744,180.82,180.8,65.46452381]
[1761852567206,4.11028744,180.82,180.8,66.16452381]
[1761852567722,4.11028744,180.82,180.8,65.46452381]
[1761852568218,4.11028744,180.82,180.8,66.16452381]
[1761852568524,4.11028744,180.81,180.8,65.46452381]
[1761852568903,4.11028744,180.82,180.8,65.46452381]
[1761852569108,4.11028744,180.81,180.8,65.46452381]
[1761852569311,4.11028744,180.82,180.8,65.46452381]
[1761852569508,4.11028744,180.81,180.8,65.46452381]
[1761852570019,4.11028744,180.82,180.8,65.46452381]
[1761852570524,4.11129879,180.81,180.8,71.69549726]
[1761852570704,4.11129879,180.82,180.8,66.16452381]
[1761852570892,4.11129879,180.81,180.8,66.16452381]
[1761852571315,4.11129879,180.82,180.8,66.16452381]
[1761852571627,6.40561416,180.82,180.8,65.46452381]
[1761852571924,4.11129879,180.81,180.8,65.46452381]
[1761852572116,6.40561416,180.81,180.8,65.46452381]
[1761852573109,11.93628171,180.81,180.8,65.46452381]
[1761852573432,12.61628171,180.81,180.8,65.46452381]
[1761852574322,11.93628171,180.81,180.8,65.46452381]
[1761852574842,11.93628171,180.81,180.8,3.76452381]
[1761852575036,6.40561416,180.81,180.8,3.76452381]
[1761852575631,11.93628171,180.81,180.8,3.76452381]
[1761852575840,20.592,180.84,180.8,4.46452381]
[1761852576021,4.62456126,180.9,180.82,2.29431537]
[1761852576327,4.62456126,180.9,180.81,9.78882769]
[1761852576328,0.68,180.9,180.85,2.29431537]
[1761852576636,0.68,180.89,180.83,7.82433817]
[1761852576934,0.68,180.89,180.83,17.61316586]
[1761852577111,0.68,180.89,180.84,2.29431537]
[1761852578036,0.68,180.89,180.83,15.31885049]
[1761852578215,2.97431537,180.89,180.8,65.74884695]
[1761852578411,5.5285272,180.88,180.83,2.29431537]
[1761852578626,6.2085272,180.88,180.82,2.29431537]
[1761852578826,2.97431537,180.87,180.81,22.15150157]
[1761852579055,2.97431537,180.87,180.81,16.62095902]
[1761852579228,0.66,180.87,180.81,22.15148543]
[1761852579431,0.66,180.87,180.82,2.29431537]
[1761852579772,26.11999654,180.9,180.82,2.29431537]
[1761852579773,2.95431537,180.88,180.82,2.29431537]
[1761852580047,2.29431537,180.88,180.81,7.82484178]
[1761852580233,2.29431537,180.88,180.82,2.29431537]
[1761852580234,2.95431537,180.88,180.82,2.29431537]
[1761852580422,2.95431537,180.88,180.83,5.53005585]
[1761852580622,8.4828511,180.88,180.83,5.53005585]
[1761852580925,2.95431537,180.87,180.82,5.53033688]
[1761852581644,0.66,180.86,180.82,5.53033688]
[1761852581839,2.29431537,180.87,180.82,5.53033688]
[1761852581840,2.95431537,180.87,180.82,5.53033688]
[1761852582038,0.66,180.86,180.82,5.53033688]
[1761852582362,2.95431537,180.86,180.81,5.53063398]
[1761852582558,0.66,180.86,180.81,7.82494935]
[1761852583225,0.66,180.89,180.83,2.29431537]
[1761852583452,20.592,180.9,180.85,2.29431537]
[1761852583625,20.592,180.9,180.86,2.29431537]
[1761852583825,21.252,180.9,180.86,2.29431537]
[1761852584134,0.66,180.89,180.86,2.29431537]
[1761852584543,20.592,180.9,180.86,5.52906805]
[1761852584717,13.81896425,180.92,180.87,2.29431537]
[1761852584718,5.52733752,180.92,180.87,2.29431537]
[1761852584919,0.66,180.93,180.88,2.29431537]
[1761852585353,2.95431537,180.93,180.88,2.29431537]
[1761852585649,23.54631537,180.93,180.88,2.29431537]
[1761852585826,6.18741942,180.92,180.88,2.29431537]
[1761852586247,0.66,180.91,180.88,2.29431537]
[1761852586442,0.66,180.91,180.87,69.52307964]
[1761852587069,6.18762617,180.91,180.87,69.52307964]
[1761852587565,0.66,180.9,180.87,69.52307964]
[1761852588160,0.66,180.9,180.87,61.7]
[1761852589138,6.18805287,180.9,180.87,61.7]
[1761852589337,6.18805287,180.9,180.86,2.29431537]
[1761852589840,0.66,180.9,180.86,2.29431537]
[1761852590572,6.18794243,180.9,180.86,2.29431537]
[1761852591346,0.66,180.89,180.86,2.29431537]
[1761852591666,0.66,180.89,180.87,2.29431537]
[1761852591968,0.66,180.89,180.86,7.82342444]
[1761852592271,0.66,180.89,180.85,2.29431537]
[1761852592440,0.66,180.89,180.84,5.52950589]
[1761852592640,0.66,180.89,180.85,2.29431537]
[1761852593161,0.66,180.89,180.85,7.82353072]
[1761852593364,0.66,180.89,180.84,2.29431537]
[1761852594363,6.18824872,180.89,180.85,5.52944429]
[1761852594566,6.18824872,180.89,180.85,7.82375966]
[1761852594866,0.66,180.88,180.85,7.82375966]
[1761852595175,26.77930488,180.92,180.86,2.29431537]
[1761852595356,28.41362025,180.92,180.86,2.29431537]
[1761852595669,28.41362025,180.92,180.88,2.29431537]
[1761852595670,21.252,180.92,180.88,2.29431537]
[1761852595971,0.66,180.91,180.88,2.29431537]
[1761852596470,0.66,180.91,180.88,7.82280615]
[1761852596666,20.592,180.92,180.88,7.82280615]
[1761852596874,21.252,180.92,180.88,7.82280615]
[1761852597049,21.252,180.92,180.89,2.29431537]
[1761852597250,21.252,180.92,180.9,2.29431537]
[1761852597451,0.66,180.94,180.91,2.29431537]
[1761852597651,0.66,180.94,180.88,67.22849078]
[1761852597652,0.66,180.97,180.93,2.29431537]
[1761852597971,0.66,180.99,180.96,2.29431537]
[1761852598169,21.252,180.99,180.97,2.29431537]
[1761852598341,0.66,180.99,180.97,2.29431537]
[1761852598540,5.72479001,181.01,180.97,2.29431537]
[1761852598762,0.66,180.98,180.96,2.29431537]
[1761852598941,6.38479001,181.01,180.96,2.29431537]
[1761852599145,6.38479001,181.01,180.97,2.29431537]
[1761852599452,5.72479001,181.01,180.97,2.29431537]
[1761852599656,0.66,181.0,180.97,2.29431537]
[1761852599961,26.77700786,181.0,180.96,2.29431537]
[1761852600148,26.77700786,181.0,180.92,5.52730488]
[1761852600349,21.252,181.0,180.97,2.29431537]
[1761852600575,21.252,181.0,180.92,5.52730488]
[1761852600576,0.2,181.01,180.99,2.29431537]
[1761852600743,0.2,181.01,181.0,2.29431537]
[1761852600948,0.2,181.01,180.94,0.28432314]
[1761852601157,0.2,181.01,181.0,2.29431537]
[1761852601356,0.2,181.01,180.94,67.50759844]
[1761852601562,0.2,181.01,180.99,2.29431537]
[1761852602094,0.2,181.01,180.97,2.29431537]
[1761852602095,0.66,181.0,180.97,2.29431537]
[1761852602252,0.2,181.01,180.99,2.29431537]
[1761852602456,0.2,181.01,180.94,29.13225644]
[1761852602678,0.2,181.01,181.0,2.29431537]
[1761852603473,0.2,181.01,180.94,96.35614433]
[1761852603474,0.2,181.01,180.97,30.38082769]
[1761852603699,2.49431537,181.09,181.01,9.78882769]
[1761852603700,0.2,181.09,181.01,9.78882769]
[1761852603877,0.2,181.09,181.08,2.29431537]
[1761852604078,0.2,181.09,181.08,7.81673639]
[1761852604273,0.2,181.09,181.08,2.29431537]
[1761852606179,0.2,181.09,181.08,20.18420259]
[1761852606402,0.2,181.09,181.08,17.88988722]
[1761852606703,0.2,181.09,181.08,2.29431537]
[1761852607217,0.2,181.09,181.05,15.31215004]
[1761852607378,0.2,181.09,181.08,2.29431537]
[1761852608201,6.3821392,181.09,181.01,16.46726911]
[1761852608503,6.38219929,181.09,181.05,2.29431537]
[1761852608691,0.66,181.08,181.05,2.29431537]
[1761852609503,0.2,181.09,181.06,5.82459902]
[1761852609905,0.2,181.09,181.08,5.82459902]
[1761852610101,0.2,181.09,181.08,11.34702004]
[1761852610403,0.2,181.15,181.09,0.28432314]
[1761852610585,0.2,181.15,181.14,5.82459902]
[1761852610788,0.9,181.15,181.09,0.28432314]
[1761852611003,0.2,181.15,181.14,5.82459902]
[1761852611780,0.2,181.15,181.14,15.89774985]
[1761852611981,0.2,181.15,181.14,10.07315083]
[1761852612231,0.2,181.15,181.14,21.41834165]
[1761852612378,21.292,181.22,181.15,0.28432314]
[1761852612584,0.7,181.22,181.15,0.28432314]
[1761852612913,0.7,181.22,181.2,5.82459902]
[1761852613292,0.2,181.24,181.21,5.82459902]
[1761852613494,0.2,181.24,181.23,5.82459902]
[1761852614122,0.2,181.24,181.23,21.41560009]
[1761852615013,0.2,181.24,181.21,30.66515083]
[1761852615198,0.2,181.24,181.23,6.10892216]
[1761852615901,0.2,181.27,181.23,6.10892216]
[1761852616103,0.2,181.27,181.26,5.82459902]
[1761852617218,0.2,181.27,181.26,15.89774985]
[1761852617653,0.2,181.32,181.27,0.28432314]
[1761852617933,0.69,181.31,181.29,5.82459902]
[1761852618232,0.89,181.32,181.3,5.82459902]
[1761852618435,0.2,181.32,181.31,5.82459902]
[1761852619418,0.89,181.32,181.27,5.51652936]
[1761852619610,0.89,181.32,181.31,5.82459902]
[1761852619803,0.2,181.32,181.31,5.82459902]
[1761852620838,0.2,181.32,181.31,11.3400146]
[1761852621447,0.2,181.32,181.31,21.41316543]
[1761852621633,0.2,181.33,181.32,0.28432314]
[1761852621836,0.2,181.33,181.32,15.89774985]
[1761852622035,0.2,181.34,181.33,30.38082769]
[1761852622258,0.2,181.34,181.33,41.72023396]
[1761852622461,0.2,181.35,181.34,6.10892216]